{"text_format":"3","workbook":"xlsx","n_sheets":1,"sheets":["Planner de Orçamento de Feriado"],"not_rendered":{"defined_names":1},"read":"whole","date_system":"1900"}

{"sheet":"Planner de Orçamento de Feriado","index":0,"n_rows":37,"n_cols":12,"rows_kept":37,"merged":[[1,1,7,4],[9,1,9,4],[9,8,9,11],[19,1,19,4],[19,8,19,11],[30,1,30,4],[30,8,30,11]]}
[]
[null,"Planner de Orçamento de Feriado"]
[]
[{"$nulls":8},"ORÇAMENTO DE NATAL",null,{"$f":"SUM(Presentes[Orçamento],Embalagem[Orçamento],(Viagem[Orçamento],(Refeições[Orçamento],(Entretenimento[Orçamento],Diversos[Orçamento]))))","v":{"v":750,"d":"R$ 750.00"}}]
[{"$nulls":8},"GASTO REAL",null,{"$f":"SUM((Presentes[Real],(Embalagem[Real],(Viagem[Real],(Refeições[Real],(Entretenimento[Real],(Diversos[Real])))))))","v":{"v":820,"d":"R$ 820.00"}}]
[]
[{"$nulls":8},"DIFERENÇA (acima/abaixo do orçamento)",null,{"$f":"SUM(K4-K5)","v":{"v":-70,"d":"-R$ 70.00"}}]
[]
[]
[null,"Presentes",{"$nulls":6},"Refeições de Natal"]
[null,"Item","Orçamento","Real","Diferença",{"$nulls":3},"Item","Orçamento","Real","Diferença"]
[null,"Família",{"v":500,"d":"R$ 500.00"},{"v":495,"d":"R$ 495.00"},{"$f":"Presentes[[#This Row],[Orçamento]]-Presentes[[#This Row],[Real]]","v":{"v":5,"d":"R$ 5.00"}},{"$nulls":3},"Supermercado",null,null,{"$f":"Refeições[[#This Row],[Orçamento]]-Refeições[[#This Row],[Real]]","v":{"v":0,"d":"R$ 0.00"}}]
[null,"Amigos",{"v":250,"d":"R$ 250.00"},{"v":325,"d":"R$ 325.00"},{"$f":"Presentes[[#This Row],[Orçamento]]-Presentes[[#This Row],[Real]]","v":{"v":-75,"d":"-R$ 75.00"}},{"$nulls":3},"Bebidas",null,null,{"$f":"Refeições[[#This Row],[Orçamento]]-Refeições[[#This Row],[Real]]","v":{"v":0,"d":"R$ 0.00"}}]
[null,"Colegas de trabalho",null,null,{"$f":"Presentes[[#This Row],[Orçamento]]-Presentes[[#This Row],[Real]]","v":{"v":0,"d":"R$ 0.00"}},{"$nulls":3},"Decorações",null,null,{"$f":"Refeições[[#This Row],[Orçamento]]-Refeições[[#This Row],[Real]]","v":{"v":0,"d":"R$ 0.00"}}]
[null,"Professores, babás etc.",null,null,{"$f":"Presentes[[#This Row],[Orçamento]]-Presentes[[#This Row],[Real]]","v":{"v":0,"d":"R$ 0.00"}},{"$nulls":3},"Outros (guia na última coluna desta linha para Adicionar linha)",null,null,{"$f":"Refeições[[#This Row],[Orçamento]]-Refeições[[#This Row],[Real]]","v":{"v":0,"d":"R$ 0.00"}}]
[null,"Doações de caridade",null,null,{"$f":"Presentes[[#This Row],[Orçamento]]-Presentes[[#This Row],[Real]]","v":{"v":0,"d":"R$ 0.00"}},{"$nulls":3},"Total",{"$f":"SUBTOTAL(109,Refeições[Orçamento])","v":{"v":0,"d":"R$ 0.00"}},{"$f":"SUBTOTAL(109,Refeições[Real])","v":{"v":0,"d":"R$ 0.00"}},{"$f":"SUBTOTAL(109,Refeições[Diferença])","v":{"v":0,"d":"R$ 0.00"}}]
[null,"Outros (guia na última coluna desta linha para Adicionar linha)",null,null,{"$f":"Presentes[[#This Row],[Orçamento]]-Presentes[[#This Row],[Real]]","v":{"v":0,"d":"R$ 0.00"}}]
[null,"Total",{"$f":"SUBTOTAL(109,Presentes[Orçamento])","v":{"v":750,"d":"R$ 750.00"}},{"$f":"SUBTOTAL(109,Presentes[Real])","v":{"v":820,"d":"R$ 820.00"}},{"$f":"SUBTOTAL(109,Presentes[Diferença])","v":{"v":-70,"d":"-R$ 70.00"}}]
[]
[null,"Embalagem",{"$nulls":6},"Entretenimento"]
[null,"Item","Orçamento","Real","Diferença",{"$nulls":3},"Item","Orçamento","Real","Diferença"]
[null,"Embalagem de presente",null,null,{"$f":"Embalagem[[#This Row],[Orçamento]]-Embalagem[[#This Row],[Real]]","v":{"v":0,"d":"R$ 0.00"}},{"$nulls":3},"Ajuda de terceiros (barman, serviço de bufê, limpeza, etc.)",null,null,{"$f":"Entretenimento[[#This Row],[Orçamento]]-Entretenimento[[#This Row],[Real]]","v":{"v":0,"d":"R$ 0.00"}}]
[null,"Etiquetas",null,null,{"$f":"Embalagem[[#This Row],[Orçamento]]-Embalagem[[#This Row],[Real]]","v":{"v":0,"d":"R$ 0.00"}},{"$nulls":3},"Decorações",null,null,{"$f":"Entretenimento[[#This Row],[Orçamento]]-Entretenimento[[#This Row],[Real]]","v":{"v":0,"d":"R$ 0.00"}}]
[null,"Materiais (faixas, fita, etc.)",null,null,{"$f":"Embalagem[[#This Row],[Orçamento]]-Embalagem[[#This Row],[Real]]","v":{"v":0,"d":"R$ 0.00"}},{"$nulls":3},"Comida e bebidas",null,null,{"$f":"Entretenimento[[#This Row],[Orçamento]]-Entretenimento[[#This Row],[Real]]","v":{"v":0,"d":"R$ 0.00"}}]
[null,"Caixas",null,null,{"$f":"Embalagem[[#This Row],[Orçamento]]-Embalagem[[#This Row],[Real]]","v":{"v":0,"d":"R$ 0.00"}},{"$nulls":3},"Vestuário",null,null,{"$f":"Entretenimento[[#This Row],[Orçamento]]-Entretenimento[[#This Row],[Real]]","v":{"v":0,"d":"R$ 0.00"}}]
[null,"Postagem",null,null,{"$f":"Embalagem[[#This Row],[Orçamento]]-Embalagem[[#This Row],[Real]]","v":{"v":0,"d":"R$ 0.00"}},{"$nulls":3},"Ingressos",null,null,{"$f":"Entretenimento[[#This Row],[Orçamento]]-Entretenimento[[#This Row],[Real]]","v":{"v":0,"d":"R$ 0.00"}}]
[null,"Outros (guia na última coluna desta linha para Adicionar linha)",null,null,{"$f":"Embalagem[[#This Row],[Orçamento]]-Embalagem[[#This Row],[Real]]","v":{"v":0,"d":"R$ 0.00"}},{"$nulls":3},"Jantares fora",null,null,{"$f":"Entretenimento[[#This Row],[Orçamento]]-Entretenimento[[#This Row],[Real]]","v":{"v":0,"d":"R$ 0.00"}}]
[null,"Total",{"$f":"SUBTOTAL(109,Embalagem[Orçamento])","v":{"v":0,"d":"R$ 0.00"}},{"$f":"SUBTOTAL(109,Embalagem[Real])","v":{"v":0,"d":"R$ 0.00"}},{"$f":"SUBTOTAL(109,Embalagem[Diferença])","v":{"v":0,"d":"R$ 0.00"}},{"$nulls":3},"Outros (guia na última coluna desta linha para Adicionar linha)",null,null,{"$f":"Entretenimento[[#This Row],[Orçamento]]-Entretenimento[[#This Row],[Real]]","v":{"v":0,"d":"R$ 0.00"}}]
[{"$nulls":8},"Total",{"$f":"SUBTOTAL(109,Entretenimento[Orçamento])","v":{"v":0,"d":"R$ 0.00"}},{"$f":"SUBTOTAL(109,Entretenimento[Real])","v":{"v":0,"d":"R$ 0.00"}},{"$f":"SUBTOTAL(109,Entretenimento[Diferença])","v":{"v":0,"d":"R$ 0.00"}}]
[]
[null,"Viagem",{"$nulls":6},"Diversos"]
[null,"Item","Orçamento","Real","Diferença",{"$nulls":3},"Item","Orçamento","Real","Diferença"]
[null,"Passagem aérea",null,null,{"$f":"Viagem[[#This Row],[Orçamento]]-Viagem[[#This Row],[Real]]","v":{"v":0,"d":"R$ 0.00"}},{"$nulls":3},"Fotos Natalinas",null,null,{"$f":"Diversos[[#This Row],[Orçamento]]-Diversos[[#This Row],[Real]]","v":{"v":0,"d":"R$ 0.00"}}]
[null,"Hospedagem",null,null,{"$f":"Viagem[[#This Row],[Orçamento]]-Viagem[[#This Row],[Real]]","v":{"v":0,"d":"R$ 0.00"}},{"$nulls":3},"Combustível ",null,null,{"$f":"Diversos[[#This Row],[Orçamento]]-Diversos[[#This Row],[Real]]","v":{"v":0,"d":"R$ 0.00"}}]
[null,"Transporte",null,null,{"$f":"Viagem[[#This Row],[Orçamento]]-Viagem[[#This Row],[Real]]","v":{"v":0,"d":"R$ 0.00"}},{"$nulls":3},"Outros (guia na última coluna desta linha para Adicionar linha)",null,null,{"$f":"Diversos[[#This Row],[Orçamento]]-Diversos[[#This Row],[Real]]","v":{"v":0,"d":"R$ 0.00"}}]
[null,"Outros (guia na última coluna desta linha para Adicionar linha)",null,null,{"$f":"Viagem[[#This Row],[Orçamento]]-Viagem[[#This Row],[Real]]","v":{"v":0,"d":"R$ 0.00"}},{"$nulls":3},"Total",{"$f":"SUBTOTAL(109,Diversos[Orçamento])","v":{"v":0,"d":"R$ 0.00"}},{"$f":"SUBTOTAL(109,Diversos[Real])","v":{"v":0,"d":"R$ 0.00"}},{"$f":"SUBTOTAL(109,Diversos[Diferença])","v":{"v":0,"d":"R$ 0.00"}}]
[null,"Total",{"$f":"SUBTOTAL(109,Viagem[Orçamento])","v":{"v":0,"d":"R$ 0.00"}},{"$f":"SUBTOTAL(109,Viagem[Real])","v":{"v":0,"d":"R$ 0.00"}},{"$f":"SUBTOTAL(109,Viagem[Diferença])","v":{"v":0,"d":"R$ 0.00"}}]